[Event "*** Titled Tuesday Blitz"]
[Site "Chess.com"]
[Date "2020.04.21"]
[Round "6"]
[White "ErikRonka"]
[Black "DinaBelenkaya"]
[Result "1-0"]
[WhiteElo "2415"]
[BlackElo "2221"]
[TimeControl "180+1"]
[EndTime "11:09:49 PDT"]
[Termination "ErikRonka won on time"]

1. e4 {[%clk 0:03:00.9]} 1... d5 {[%clk 0:02:42.6]} 2. exd5 {[%clk 0:02:59.8]}
2... Qxd5 {[%clk 0:02:43.3]} 3. Nc3 {[%clk 0:02:59.9]} 3... Qa5 {[%clk
0:02:41.1]} 4. d4 {[%clk 0:03:00]} 4... c6 {[%clk 0:02:39.7]} 5. Nf3 {[%clk
0:02:58.2]} 5... Nf6 {[%clk 0:02:38.6]} 6. Bc4 {[%clk 0:02:58.2]} 6... Bf5
{[%clk 0:02:33.8]} 7. Ne5 {[%clk 0:02:56.7]} 7... e6 {[%clk 0:02:32.2]} 8. g4
{[%clk 0:02:56.5]} 8... Bg6 {[%clk 0:02:32.3]} 9. h4 {[%clk 0:02:56.4]} 9... Be4
{[%clk 0:02:21.4]} 10. O-O {[%clk 0:02:43]} 10... Bd5 {[%clk 0:02:18.7]} 11.
Nxd5 {[%clk 0:02:40.2]} 11... cxd5 {[%clk 0:02:15.9]} 12. Bd3 {[%clk 0:02:25.7]}
12... Nc6 {[%clk 0:01:55.8]} 13. Nxc6 {[%clk 0:02:21]} 13... bxc6 {[%clk
0:01:55.6]} 14. Qf3 {[%clk 0:01:57.8]} 14... Bd6 {[%clk 0:01:53.6]} 15. Bg5
{[%clk 0:01:56]} 15... Nd7 {[%clk 0:01:21.4]} 16. Bf4 {[%clk 0:01:54.9]} 16...
Qc7 {[%clk 0:01:20.2]} 17. Bxd6 {[%clk 0:01:53.8]} 17... Qxd6 {[%clk 0:01:20.5]}
18. Rae1 {[%clk 0:01:48.4]} 18... Rb8 {[%clk 0:01:15.7]} 19. b3 {[%clk
0:01:47.7]} 19... c5 {[%clk 0:01:15.3]} 20. c4 {[%clk 0:01:27]} 20... dxc4
{[%clk 0:01:09.6]} 21. Bxc4 {[%clk 0:01:23.3]} 21... cxd4 {[%clk 0:01:09.9]} 22.
Qe4 {[%clk 0:00:20.7]} 22... O-O {[%clk 0:01:04.1]} 23. Kg2 {[%clk 0:00:20.8]}
23... Nc5 {[%clk 0:00:54.9]} 24. Qe5 {[%clk 0:00:16.8]} 24... Rbd8 {[%clk
0:00:51]} 25. Qxd6 {[%clk 0:00:11.2]} 25... Rxd6 {[%clk 0:00:50.7]} 26. Re5
{[%clk 0:00:12.1]} 26... Rc8 {[%clk 0:00:50.2]} 27. Rd1 {[%clk 0:00:11.6]} 27...
Kf8 {[%clk 0:00:43.5]} 28. f4 {[%clk 0:00:08.4]} 28... a5 {[%clk 0:00:28.5]} 29.
Kf3 {[%clk 0:00:08.7]} 29... f6 {[%clk 0:00:24]} 30. Re2 {[%clk 0:00:09.2]}
30... Re8 {[%clk 0:00:19.5]} 31. a3 {[%clk 0:00:08.5]} 31... e5 {[%clk
0:00:18.8]} 32. b4 {[%clk 0:00:08.6]} 32... axb4 {[%clk 0:00:19.2]} 33. axb4
{[%clk 0:00:09.5]} 33... Na4 {[%clk 0:00:19.4]} 34. fxe5 {[%clk 0:00:09.4]}
34... fxe5 {[%clk 0:00:18.7]} 35. Rde1 {[%clk 0:00:09.3]} 35... Nc3 {[%clk
0:00:18.6]} 36. Rxe5 {[%clk 0:00:09.1]} 36... Rxe5 {[%clk 0:00:12.1]} 37. Rxe5
{[%clk 0:00:10]} 37... d3 {[%clk 0:00:12.3]} 38. Rf5+ {[%clk 0:00:03.5]} 38...
Ke8 {[%clk 0:00:09]} 39. Re5+ {[%clk 0:00:03.1]} 39... Kd8 {[%clk 0:00:08.9]}
40. Bxd3 {[%clk 0:00:02.4]} 40... Rxd3+ {[%clk 0:00:08.2]} 41. Kg2 {[%clk
0:00:03]} 41... Rd4 {[%clk 0:00:08.3]} 42. Rg5 {[%clk 0:00:03.2]} 42... g6
{[%clk 0:00:08.3]} 43. h5 {[%clk 0:00:03.6]} 43... Ne4 {[%clk 0:00:07.1]} 44.
Re5 {[%clk 0:00:02.8]} 44... Nf6 {[%clk 0:00:06.5]} 45. hxg6 {[%clk 0:00:02.4]}
45... Rxg4+ {[%clk 0:00:05.9]} 46. Kh3 {[%clk 0:00:03]} 46... Rxg6 {[%clk
0:00:05.2]} 47. Ra5 {[%clk 0:00:03.2]} 47... Ke7 {[%clk 0:00:04.5]} 48. Ra7+
{[%clk 0:00:03.3]} 48... Ke6 {[%clk 0:00:04.7]} 49. b5 {[%clk 0:00:03.9]} 49...
Rg5 {[%clk 0:00:04.7]} 50. b6 {[%clk 0:00:04.2]} 50... Rb5 {[%clk 0:00:04.8]}
51. b7 {[%clk 0:00:04.7]} 51... h5 {[%clk 0:00:04.8]} 52. Kh4 {[%clk 0:00:04.7]}
52... Rb4+ {[%clk 0:00:02.8]} 53. Kg5 {[%clk 0:00:05.2]} 53... h4 {[%clk
0:00:02.5]} 54. b8=Q {[%clk 0:00:03.4]} 54... Rxb8 {[%clk 0:00:02.4]} 55. Kxh4
{[%clk 0:00:04.3]} 55... Rb4+ {[%clk 0:00:01.6]} 56. Kg3 {[%clk 0:00:04.3]}
56... Kf5 {[%clk 0:00:01.7]} 57. Ra5+ {[%clk 0:00:03.9]} 1-0

[Event "*** Titled Tuesday Blitz"]
[Site "Chess.com"]
[Date "2020.04.21"]
[Round "6"]
[White "konradrutkowski"]
[Black "ChrisTool2"]
[Result "0-1"]
[WhiteElo "2185"]
[BlackElo "2405"]
[TimeControl "180+1"]
[EndTime "11:09:49 PDT"]
[Termination "ChrisTool2 won by resignation"]

1. e4 {[%clk 0:03:00.9]} 1... c5 {[%clk 0:02:59.2]} 2. Nf3 {[%clk 0:03:00.2]}
2... e6 {[%clk 0:02:58.7]} 3. d3 {[%clk 0:02:59.5]} 3... Nc6 {[%clk 0:02:56]} 4.
g3 {[%clk 0:02:59.3]} 4... d6 {[%clk 0:02:55.9]} 5. Bg2 {[%clk 0:02:59]} 5... g6
{[%clk 0:02:56.2]} 6. O-O {[%clk 0:02:59]} 6... Bg7 {[%clk 0:02:56.7]} 7. c3
{[%clk 0:02:59.2]} 7... Nge7 {[%clk 0:02:57]} 8. d4 {[%clk 0:02:49.2]} 8... cxd4
{[%clk 0:02:56.8]} 9. cxd4 {[%clk 0:02:49.5]} 9... d5 {[%clk 0:02:56.4]} 10. e5
{[%clk 0:02:48.6]} 10... O-O {[%clk 0:02:43.1]} 11. Nc3 {[%clk 0:02:46]} 11...
Qb6 {[%clk 0:02:41]} 12. Na4 {[%clk 0:02:27.4]} 12... Qc7 {[%clk 0:02:25.4]} 13.
Bf4 {[%clk 0:02:10.2]} 13... Bd7 {[%clk 0:02:21]} 14. Rc1 {[%clk 0:02:05.9]}
14... Rac8 {[%clk 0:02:13.5]} 15. Nc5 {[%clk 0:01:58.2]} 15... Be8 {[%clk
0:02:04.2]} 16. Qd2 {[%clk 0:01:53.4]} 16... Qb6 {[%clk 0:01:50.1]} 17. a3
{[%clk 0:00:58.1]} 17... a5 {[%clk 0:01:46]} 18. Rc3 {[%clk 0:00:51]} 18... Nxd4
{[%clk 0:01:22.1]} 19. Qxd4 {[%clk 0:00:48.4]} 19... Nf5 {[%clk 0:01:21.4]} 20.
Qd2 {[%clk 0:00:16.9]} 20... Rxc5 {[%clk 0:01:20.4]} 21. Rxc5 {[%clk 0:00:17.5]}
21... Qxc5 {[%clk 0:01:20]} 22. Rc1 {[%clk 0:00:18.4]} 22... Qb6 {[%clk
0:01:12.8]} 23. g4 {[%clk 0:00:18.9]} 23... Ne7 {[%clk 0:01:09.3]} 24. Be3
{[%clk 0:00:18.7]} 24... Qd8 {[%clk 0:00:48.3]} 25. Bc5 {[%clk 0:00:13.1]} 25...
Bc6 {[%clk 0:00:46.2]} 26. Bd6 {[%clk 0:00:12.7]} 26... Re8 {[%clk 0:00:43.1]}
27. Nd4 {[%clk 0:00:12.6]} 27... Qd7 {[%clk 0:00:40]} 28. f4 {[%clk 0:00:11.6]}
28... Nc8 {[%clk 0:00:38.7]} 29. Bc5 {[%clk 0:00:07.4]} 29... f6 {[%clk
0:00:30.5]} 30. exf6 {[%clk 0:00:06.8]} 30... Bxf6 {[%clk 0:00:30.5]} 31. Nf3
{[%clk 0:00:07.7]} 31... Bg7 {[%clk 0:00:22.6]} 32. Bd4 {[%clk 0:00:07.7]} 32...
Nd6 {[%clk 0:00:19.5]} 33. Bxg7 {[%clk 0:00:07.5]} 33... Qxg7 {[%clk 0:00:20]}
34. Ne5 {[%clk 0:00:06.6]} 34... Qf6 {[%clk 0:00:15.6]} 35. g5 {[%clk
0:00:05.4]} 35... Qf5 {[%clk 0:00:12.5]} 36. Nxc6 {[%clk 0:00:04.6]} 36... bxc6
{[%clk 0:00:13.4]} 37. Rxc6 {[%clk 0:00:04.4]} 37... Ne4 {[%clk 0:00:12.3]} 38.
Bxe4 {[%clk 0:00:04.4]} 38... Qxe4 {[%clk 0:00:13.2]} 39. Rc7 {[%clk 0:00:04.2]}
39... Rf8 {[%clk 0:00:11.6]} 40. Qc3 {[%clk 0:00:02.5]} 40... d4 {[%clk
0:00:10.3]} 41. Qc6 {[%clk 0:00:02.3]} 41... Qe3+ {[%clk 0:00:09.8]} 42. Kg2
{[%clk 0:00:02.5]} 42... Qe2+ {[%clk 0:00:09.9]} 43. Kg3 {[%clk 0:00:01.9]}
43... Qe1+ {[%clk 0:00:09.7]} 44. Kg2 {[%clk 0:00:02.8]} 44... Qe2+ {[%clk
0:00:09.2]} 45. Kg3 {[%clk 0:00:03.4]} 45... Qe3+ {[%clk 0:00:09.6]} 46. Kg2
{[%clk 0:00:03.2]} 46... Rxf4 {[%clk 0:00:06.3]} 47. Rc8+ {[%clk 0:00:03.3]}
47... Rf8 {[%clk 0:00:05.8]} 48. Rc7 {[%clk 0:00:03.8]} 48... Qe2+ {[%clk
0:00:04.9]} 49. Kg3 {[%clk 0:00:03.8]} 49... Qe1+ {[%clk 0:00:05.4]} 50. Kg2
{[%clk 0:00:03.9]} 50... Qd2+ {[%clk 0:00:05.9]} 51. Kg3 {[%clk 0:00:04.7]}
51... Qxg5+ {[%clk 0:00:06.2]} 52. Kh3 {[%clk 0:00:04.1]} 52... Qf5+ {[%clk
0:00:06.6]} 53. Kg2 {[%clk 0:00:04.3]} 53... Qf2+ {[%clk 0:00:06.1]} 54. Kh3
{[%clk 0:00:04.2]} 54... Qf3+ {[%clk 0:00:06.7]} 55. Kh4 {[%clk 0:00:04]} 55...
Qxc6 {[%clk 0:00:06.6]} 56. Kg5 {[%clk 0:00:04.9]} 56... Qxc7 {[%clk 0:00:06.1]}
0-1

[Event "*** Titled Tuesday Blitz"]
[Site "Chess.com"]
[Date "2020.04.21"]
[Round "6"]
[White "Chessmasterzt"]
[Black "olomi007"]
[Result "1/2-1/2"]
[WhiteElo "2498"]
[BlackElo "2655"]
[TimeControl "180+1"]
[EndTime "11:09:53 PDT"]
[Termination "Game drawn by stalemate"]

1. Nf3 {[%clk 0:03:00.7]} 1... c5 {[%clk 0:02:58.4]} 2. c4 {[%clk 0:02:59.5]}
2... Nc6 {[%clk 0:02:58.5]} 3. g3 {[%clk 0:02:59.1]} 3... g6 {[%clk 0:02:56.1]}
4. Nc3 {[%clk 0:02:59.4]} 4... Bg7 {[%clk 0:02:56.2]} 5. Bg2 {[%clk 0:03:00.3]}
5... d6 {[%clk 0:02:56.3]} 6. O-O {[%clk 0:02:58.8]} 6... e6 {[%clk 0:02:56.8]}
7. e3 {[%clk 0:02:46.8]} 7... Nge7 {[%clk 0:02:55.8]} 8. d4 {[%clk 0:02:46.2]}
8... O-O {[%clk 0:02:56]} 9. Re1 {[%clk 0:02:35.3]} 9... Rb8 {[%clk 0:02:55.4]}
10. a4 {[%clk 0:02:30.3]} 10... cxd4 {[%clk 0:02:46.8]} 11. Nxd4 {[%clk
0:02:29.6]} 11... d5 {[%clk 0:02:47.7]} 12. cxd5 {[%clk 0:02:26.2]} 12... Nxd4
{[%clk 0:02:45.4]} 13. exd4 {[%clk 0:02:27.1]} 13... Nxd5 {[%clk 0:02:45]} 14.
Nxd5 {[%clk 0:02:22.8]} 14... exd5 {[%clk 0:02:45.2]} 15. Bf4 {[%clk 0:02:21.3]}
15... Ra8 {[%clk 0:02:43.7]} 16. Qb3 {[%clk 0:02:18.7]} 16... Be6 {[%clk
0:02:39.6]} 17. Qxb7 {[%clk 0:02:14]} 17... Bxd4 {[%clk 0:02:38.1]} 18. Rad1
{[%clk 0:02:13.2]} 18... Qf6 {[%clk 0:02:33.3]} 19. Bxd5 {[%clk 0:02:05.2]}
19... Bxd5 {[%clk 0:02:29.9]} 20. Qxd5 {[%clk 0:02:06.1]} 20... Bxb2 {[%clk
0:02:29.8]} 21. Be5 {[%clk 0:01:45.8]} 21... Bxe5 {[%clk 0:02:28]} 22. Qxe5
{[%clk 0:01:46.7]} 22... Qxe5 {[%clk 0:02:23.8]} 23. Rxe5 {[%clk 0:01:47.6]}
23... Rfd8 {[%clk 0:02:24.3]} 24. Rxd8+ {[%clk 0:01:45.7]} 24... Rxd8 {[%clk
0:02:25.2]} 25. Re7 {[%clk 0:01:45.8]} 25... a6 {[%clk 0:02:25.7]} 26. Ra7
{[%clk 0:01:43.5]} 26... Rd6 {[%clk 0:02:25.7]} 27. Kg2 {[%clk 0:01:39.1]} 27...
h5 {[%clk 0:02:25.7]} 28. h4 {[%clk 0:01:36.5]} 28... Kg7 {[%clk 0:02:26]} 29.
Kf3 {[%clk 0:01:37]} 29... Kf6 {[%clk 0:02:26.1]} 30. Ke4 {[%clk 0:01:34.5]}
30... Ke6 {[%clk 0:02:25.8]} 31. a5 {[%clk 0:01:28.1]} 31... f6 {[%clk
0:02:15.4]} 32. Rg7 {[%clk 0:01:23.3]} 32... f5+ {[%clk 0:02:00.2]} 33. Ke3
{[%clk 0:01:19.5]} 33... Kf6 {[%clk 0:01:57.1]} 34. Rb7 {[%clk 0:01:19.8]} 34...
Ke5 {[%clk 0:01:54.1]} 35. Re7+ {[%clk 0:01:04.8]} 35... Kf6 {[%clk 0:01:53.6]}
36. Rc7 {[%clk 0:01:02.2]} 36... Re6+ {[%clk 0:01:48.3]} 37. Kd4 {[%clk
0:00:58]} 37... g5 {[%clk 0:01:48.6]} 38. hxg5+ {[%clk 0:00:57.2]} 38... Kxg5
{[%clk 0:01:48.6]} 39. Rg7+ {[%clk 0:00:56.5]} 39... Kh6 {[%clk 0:01:44.2]} 40.
Rb7 {[%clk 0:00:56.3]} 40... Re4+ {[%clk 0:01:33.6]} 41. Kd3 {[%clk 0:00:52]}
41... Ra4 {[%clk 0:01:31.7]} 42. Rb6+ {[%clk 0:00:46.7]} 42... Kg5 {[%clk
0:01:32.2]} 43. Rxa6 {[%clk 0:00:45.7]} 43... f4 {[%clk 0:01:32.6]} 44. gxf4+
{[%clk 0:00:29.1]} 44... Rxf4 {[%clk 0:01:28]} 45. Ke3 {[%clk 0:00:25.6]} 45...
Ra4 {[%clk 0:01:27.5]} 46. Ra8 {[%clk 0:00:25.5]} 46... Ra3+ {[%clk 0:01:22.3]}
47. Ke2 {[%clk 0:00:22.5]} 47... h4 {[%clk 0:01:22.1]} 48. a6 {[%clk 0:00:18]}
48... h3 {[%clk 0:01:19.9]} 49. a7 {[%clk 0:00:16.3]} 49... h2 {[%clk 0:01:20]}
50. Rg8+ {[%clk 0:00:15.8]} 50... Kf6 {[%clk 0:01:19.6]} 51. Rh8 {[%clk
0:00:14.7]} 51... Rxa7 {[%clk 0:01:17.7]} 52. Rxh2 {[%clk 0:00:14.4]} 52... Ra3
{[%clk 0:01:15.1]} 53. Rg2 {[%clk 0:00:13.5]} 53... Rb3 {[%clk 0:01:14.2]} 54.
Rg1 {[%clk 0:00:13.2]} 54... Ra3 {[%clk 0:01:13.8]} 55. Rd1 {[%clk 0:00:13]}
55... Rb3 {[%clk 0:01:13]} 56. f3 {[%clk 0:00:13.2]} 56... Ra3 {[%clk
0:01:12.7]} 57. Kf2 {[%clk 0:00:13.4]} 57... Rb3 {[%clk 0:01:11.2]} 58. Kg3
{[%clk 0:00:13.6]} 58... Rb4 {[%clk 0:01:11.3]} 59. f4 {[%clk 0:00:13.2]} 59...
Kf5 {[%clk 0:01:04.4]} 60. Rd5+ {[%clk 0:00:12.5]} 60... Kf6 {[%clk 0:01:04.4]}
61. Kg4 {[%clk 0:00:12]} 61... Rb6 {[%clk 0:01:03]} 62. Ra5 {[%clk 0:00:11.4]}
62... Rc6 {[%clk 0:01:02.9]} 63. Rh5 {[%clk 0:00:11.6]} 63... Kg6 {[%clk
0:00:58.7]} 64. f5+ {[%clk 0:00:10.9]} 64... Kg7 {[%clk 0:00:57.2]} 65. Rh1
{[%clk 0:00:09.6]} 65... Ra6 {[%clk 0:00:53]} 66. Kg5 {[%clk 0:00:08.7]} 66...
Rb6 {[%clk 0:00:50.2]} 67. Rc1 {[%clk 0:00:07.8]} 67... Kf7 {[%clk 0:00:49.5]}
68. Rc7+ {[%clk 0:00:07.5]} 68... Kf8 {[%clk 0:00:49.5]} 69. Kh5 {[%clk
0:00:06.8]} 69... Ra6 {[%clk 0:00:48.6]} 70. Kg4 {[%clk 0:00:06.7]} 70... Rb6
{[%clk 0:00:48]} 71. Kg5 {[%clk 0:00:07]} 71... Ra6 {[%clk 0:00:48]} 72. Rc5
{[%clk 0:00:07.2]} 72... Rb6 {[%clk 0:00:46.1]} 73. Re5 {[%clk 0:00:07.5]} 73...
Ra6 {[%clk 0:00:44.5]} 74. Re6 {[%clk 0:00:07.5]} 74... Rxe6 {[%clk 0:00:41.7]}
75. fxe6 {[%clk 0:00:08.4]} 75... Ke7 {[%clk 0:00:41.9]} 76. Kf5 {[%clk
0:00:09.3]} 76... Ke8 {[%clk 0:00:41.9]} 77. Kf6 {[%clk 0:00:09.7]} 77... Kf8
{[%clk 0:00:42]} 78. Ke5 {[%clk 0:00:10.6]} 78... Ke7 {[%clk 0:00:42.1]} 79. Kd5
{[%clk 0:00:10.6]} 79... Ke8 {[%clk 0:00:42.1]} 80. Kd6 {[%clk 0:00:11.5]} 80...
Kd8 {[%clk 0:00:42.1]} 81. e7+ {[%clk 0:00:12.4]} 81... Ke8 {[%clk 0:00:42.3]}
82. Ke6 {[%clk 0:00:13.3]} 1/2-1/2

[Event "*** Titled Tuesday Blitz"]
[Site "Chess.com"]
[Date "2020.04.21"]
[Round "6"]
[White "TV27"]
[Black "matiss90"]
[Result "0-1"]
[WhiteElo "2144"]
[BlackElo "2493"]
[TimeControl "180+1"]
[EndTime "11:09:53 PDT"]
[Termination "matiss90 won on time"]

1. e4 {[%clk 0:03:00.9]} 1... c5 {[%clk 0:02:58.9]} 2. Nf3 {[%clk 0:02:59.9]}
2... d6 {[%clk 0:02:59.1]} 3. c3 {[%clk 0:02:55.3]} 3... Nf6 {[%clk 0:02:58.3]}
4. Qc2 {[%clk 0:02:53.5]} 4... Nc6 {[%clk 0:02:57.8]} 5. Be2 {[%clk 0:02:48.3]}
5... g6 {[%clk 0:02:57.6]} 6. O-O {[%clk 0:02:46.9]} 6... Bg7 {[%clk 0:02:58.1]}
7. d3 {[%clk 0:02:45.9]} 7... O-O {[%clk 0:02:57.6]} 8. Na3 {[%clk 0:02:43.6]}
8... Rb8 {[%clk 0:02:57.2]} 9. c4 {[%clk 0:02:38.3]} 9... a6 {[%clk 0:02:49.3]}
10. Be3 {[%clk 0:02:35.6]} 10... b5 {[%clk 0:02:47]} 11. Qd2 {[%clk 0:02:31.4]}
11... Ng4 {[%clk 0:02:36.6]} 12. cxb5 {[%clk 0:02:27.5]} 12... Nxe3 {[%clk
0:02:35.2]} 13. fxe3 {[%clk 0:02:26.4]} 13... axb5 {[%clk 0:02:35.2]} 14. d4
{[%clk 0:02:25.8]} 14... cxd4 {[%clk 0:02:04]} 15. exd4 {[%clk 0:02:23.8]} 15...
b4 {[%clk 0:02:00.7]} 16. Nc2 {[%clk 0:02:19]} 16... b3 {[%clk 0:01:56.2]} 17.
axb3 {[%clk 0:02:14.2]} 17... Rxb3 {[%clk 0:01:56.7]} 18. Bc4 {[%clk 0:01:51.5]}
18... Rxb2 {[%clk 0:01:52.1]} 19. Rab1 {[%clk 0:01:48.9]} 19... Rxb1 {[%clk
0:01:47.7]} 20. Rxb1 {[%clk 0:01:47.6]} 20... h6 {[%clk 0:01:41.7]} 21. h3
{[%clk 0:01:36.5]} 21... Qa5 {[%clk 0:01:25]} 22. Qxa5 {[%clk 0:01:30.1]} 22...
Nxa5 {[%clk 0:01:25.9]} 23. Bd3 {[%clk 0:01:22.1]} 23... Be6 {[%clk 0:01:19.1]}
24. d5 {[%clk 0:01:20.7]} 24... Bd7 {[%clk 0:01:14.1]} 25. Kf2 {[%clk 0:01:11]}
25... Rc8 {[%clk 0:01:11.9]} 26. Ke3 {[%clk 0:01:09.3]} 26... Nc4+ {[%clk
0:01:08.1]} 27. Bxc4 {[%clk 0:01:08.6]} 27... Rxc4 {[%clk 0:01:09]} 28. Ncd4
{[%clk 0:01:08.1]} 28... Rc3+ {[%clk 0:00:59.8]} 29. Kd2 {[%clk 0:01:05.8]}
29... Bxd4 {[%clk 0:00:53]} 30. Nxd4 {[%clk 0:01:04.8]} 30... Rg3 {[%clk
0:00:53.6]} 31. Rb8+ {[%clk 0:01:01.4]} 31... Kg7 {[%clk 0:00:52.4]} 32. Rb7
{[%clk 0:01:00.3]} 32... Rxg2+ {[%clk 0:00:52.7]} 33. Ke3 {[%clk 0:00:59.9]}
33... Bxh3 {[%clk 0:00:52.8]} 34. Rxe7 {[%clk 0:00:59]} 34... Kf6 {[%clk
0:00:53.1]} 35. Re8 {[%clk 0:00:56.1]} 35... Bd7 {[%clk 0:00:50.3]} 36. Rd8
{[%clk 0:00:53.1]} 36... Ke7 {[%clk 0:00:50.6]} 37. Ra8 {[%clk 0:00:51.8]} 37...
h5 {[%clk 0:00:50.7]} 38. Ra7 {[%clk 0:00:50.7]} 38... Ke8 {[%clk 0:00:33.3]}
39. Ra8+ {[%clk 0:00:47.9]} 39... Ke7 {[%clk 0:00:33.5]} 40. Ra7 {[%clk
0:00:47.4]} 40... Kd8 {[%clk 0:00:34.1]} 41. Nc6+ {[%clk 0:00:33.1]} 41... Bxc6
{[%clk 0:00:33.9]} 42. dxc6 {[%clk 0:00:32.7]} 42... h4 {[%clk 0:00:21]} 43.
Rxf7 {[%clk 0:00:29.9]} 43... h3 {[%clk 0:00:21.2]} 44. Rh7 {[%clk 0:00:28.2]}
44... g5 {[%clk 0:00:21.4]} 45. Kd4 {[%clk 0:00:24.3]} 45... g4 {[%clk 0:00:13]}
46. Kd5 {[%clk 0:00:21.7]} 46... Rd2+ {[%clk 0:00:13.3]} 47. Ke6 {[%clk
0:00:21]} 47... Kc8 {[%clk 0:00:11.3]} 48. c7 {[%clk 0:00:09.6]} 48... h2 {[%clk
0:00:09.8]} 49. Ke7 {[%clk 0:00:07.6]} 49... Kxc7 {[%clk 0:00:09]} 50. Ke6+
{[%clk 0:00:06.9]} 50... Kc6 {[%clk 0:00:09.5]} 51. Kf5 {[%clk 0:00:06.8]} 51...
g3 {[%clk 0:00:09.5]} 52. Kf4 {[%clk 0:00:06.4]} 52... g2 {[%clk 0:00:09.6]} 53.
Rxh2 {[%clk 0:00:05.4]} 53... g1=Q {[%clk 0:00:09.9]} 54. Rxd2 {[%clk
0:00:04.6]} 54... Qc1 {[%clk 0:00:09.1]} 55. Ke3 {[%clk 0:00:03.8]} 55... Kc5
{[%clk 0:00:08.6]} 56. Ke2 {[%clk 0:00:03.5]} 56... Qc4+ {[%clk 0:00:08.3]} 57.
Ke3 {[%clk 0:00:02.7]} 57... Qc3+ {[%clk 0:00:08.1]} 58. Rd3 {[%clk 0:00:01.9]}
58... Qe1+ {[%clk 0:00:08.2]} 59. Kf3 {[%clk 0:00:01.2]} 59... Qf1+ {[%clk
0:00:08.4]} 0-1

[Event "*** Titled Tuesday Blitz"]
[Site "Chess.com"]
[Date "2020.04.21"]
[Round "6"]
[White "davigator"]
[Black "Alexchess1984"]
[Result "0-1"]
[WhiteElo "2394"]
[BlackElo "2577"]
[TimeControl "180+1"]
[EndTime "11:09:54 PDT"]
[Termination "Alexchess1984 won by resignation"]

1. e4 {[%clk 0:03:00.9]} 1... c5 {[%clk 0:02:59.5]} 2. Nf3 {[%clk 0:02:59.7]}
2... Nc6 {[%clk 0:03:00.1]} 3. d4 {[%clk 0:02:59]} 3... cxd4 {[%clk 0:03:01]} 4.
Nxd4 {[%clk 0:02:59.2]} 4... g6 {[%clk 0:03:01.4]} 5. Nxc6 {[%clk 0:02:57.7]}
5... bxc6 {[%clk 0:03:00.7]} 6. Qd4 {[%clk 0:02:58.1]} 6... Nf6 {[%clk
0:02:57.1]} 7. e5 {[%clk 0:02:58.3]} 7... Nd5 {[%clk 0:02:57.1]} 8. Bc4 {[%clk
0:02:58.7]} 8... Bg7 {[%clk 0:02:50.7]} 9. Qe4 {[%clk 0:02:57.6]} 9... O-O
{[%clk 0:02:48.3]} 10. O-O {[%clk 0:02:56.8]} 10... d6 {[%clk 0:02:47.2]} 11.
exd6 {[%clk 0:02:53.9]} 11... Qxd6 {[%clk 0:02:45.4]} 12. Nd2 {[%clk 0:02:43.5]}
12... Bf5 {[%clk 0:02:43.7]} 13. Qf3 {[%clk 0:02:35.7]} 13... Bxc2 {[%clk
0:02:35.6]} 14. Ne4 {[%clk 0:02:34.9]} 14... Bxe4 {[%clk 0:02:35.6]} 15. Qxe4
{[%clk 0:02:34.2]} 15... e6 {[%clk 0:02:36.1]} 16. Qf3 {[%clk 0:02:30.9]} 16...
Rab8 {[%clk 0:02:33.5]} 17. Bxd5 {[%clk 0:02:24]} 17... Qxd5 {[%clk 0:02:32.3]}
18. Qa3 {[%clk 0:02:23.2]} 18... Bd4 {[%clk 0:02:19.1]} 19. Rb1 {[%clk
0:02:22.5]} 19... Rb5 {[%clk 0:02:04.9]} 20. Bh6 {[%clk 0:02:18.4]} 20... Bg7
{[%clk 0:02:01.7]} 21. Bxg7 {[%clk 0:02:17.2]} 21... Kxg7 {[%clk 0:02:02.6]} 22.
Qxa7 {[%clk 0:02:17.2]} 22... Ra5 {[%clk 0:01:57.7]} 23. Qc7 {[%clk 0:02:06.7]}
23... Rxa2 {[%clk 0:01:48.7]} 24. Rbd1 {[%clk 0:02:01.5]} 24... Qb5 {[%clk
0:01:45.3]} 25. Rc1 {[%clk 0:02:00.6]} 25... Rxb2 {[%clk 0:01:41.5]} 26. Rxc6
{[%clk 0:01:59.4]} 26... Ra8 {[%clk 0:01:32.8]} 27. g3 {[%clk 0:01:56.7]} 27...
Raa2 {[%clk 0:01:28.3]} 28. Rc5 {[%clk 0:01:53.1]} 28... Qe2 {[%clk 0:01:21.4]}
29. Qe5+ {[%clk 0:01:52.7]} 29... Qxe5 {[%clk 0:01:21.1]} 30. Rxe5 {[%clk
0:01:53.3]} 30... Kf6 {[%clk 0:01:13.7]} 31. Re3 {[%clk 0:01:51.9]} 31... g5
{[%clk 0:01:13.4]} 32. h3 {[%clk 0:01:46.1]} 32... h5 {[%clk 0:01:12]} 33. Kg2
{[%clk 0:01:44.2]} 33... Kg6 {[%clk 0:01:11.9]} 34. Kg1 {[%clk 0:01:44]} 34...
Rb5 {[%clk 0:01:07]} 35. Kg2 {[%clk 0:01:43.2]} 35... Rf5 {[%clk 0:01:03.9]} 36.
Kg1 {[%clk 0:01:43]} 36... g4 {[%clk 0:01:02.5]} 37. h4 {[%clk 0:01:42.3]} 37...
Rf3 {[%clk 0:01:00.7]} 38. Re5 {[%clk 0:01:38.8]} 38... Rf5 {[%clk 0:00:53.4]}
39. Re3 {[%clk 0:01:38.1]} 39... Rfa5 {[%clk 0:00:52.4]} 40. Kg2 {[%clk
0:01:37.7]} 40... Ra1 {[%clk 0:00:52.1]} 41. Rxa1 {[%clk 0:01:33.3]} 41... Rxa1
{[%clk 0:00:51.5]} 42. Re5 {[%clk 0:01:33.8]} 42... Rd1 {[%clk 0:00:48.5]} 43.
Rg5+ {[%clk 0:01:33.1]} 43... Kh6 {[%clk 0:00:48.5]} 44. Re5 {[%clk 0:01:33.7]}
44... Rd5 {[%clk 0:00:47.9]} 45. Re3 {[%clk 0:01:34.1]} 45... Kg6 {[%clk
0:00:46.4]} 46. Re4 {[%clk 0:01:33.1]} 46... e5 {[%clk 0:00:45]} 47. Re1 {[%clk
0:01:31.6]} 47... f5 {[%clk 0:00:45]} 48. Ra1 {[%clk 0:01:30.8]} 48... f4 {[%clk
0:00:45.1]} 49. gxf4 {[%clk 0:01:23.5]} 49... exf4 {[%clk 0:00:44.8]} 50. Ra8
{[%clk 0:01:22.6]} 50... Rd2 {[%clk 0:00:42.3]} 51. Rg8+ {[%clk 0:01:20.8]}
51... Kf7 {[%clk 0:00:39.5]} 52. Kg1 {[%clk 0:01:20.2]} 52... Rd1+ {[%clk
0:00:35.1]} 53. Kg2 {[%clk 0:01:19.2]} 53... f3+ {[%clk 0:00:34.1]} 54. Kh2
{[%clk 0:01:18.3]} 54... Rf1 {[%clk 0:00:33.2]} 55. Ra8 {[%clk 0:01:11.6]} 55...
Rxf2+ {[%clk 0:00:32.9]} 56. Kg1 {[%clk 0:01:12.1]} 56... Rg2+ {[%clk
0:00:30.7]} 57. Kh1 {[%clk 0:01:11.3]} 57... Re2 {[%clk 0:00:31.2]} 58. Ra4
{[%clk 0:01:09]} 58... Kg6 {[%clk 0:00:28.9]} 59. Rf4 {[%clk 0:01:07.6]} 59...
Rd2 {[%clk 0:00:24.8]} 60. Kg1 {[%clk 0:01:07.1]} 60... Rd6 {[%clk 0:00:23.9]}
61. Kf2 {[%clk 0:01:06.3]} 61... Rf6 {[%clk 0:00:24.1]} 62. Ra4 {[%clk
0:01:03.5]} 62... Re6 {[%clk 0:00:24.5]} 63. Ra5 {[%clk 0:00:59.5]} 63... Re2+
{[%clk 0:00:24.1]} 64. Kf1 {[%clk 0:00:59.8]} 64... Rh2 {[%clk 0:00:24]} 65.
Rg5+ {[%clk 0:00:59.2]} 65... Kh6 {[%clk 0:00:23.5]} 66. Kg1 {[%clk 0:00:56.4]}
66... Rxh4 {[%clk 0:00:23.7]} 67. Ra5 {[%clk 0:00:55.8]} 67... g3 {[%clk
0:00:21.5]} 68. Rf5 {[%clk 0:00:54.5]} 68... f2+ {[%clk 0:00:20.2]} 69. Kg2
{[%clk 0:00:54.8]} 69... Rg4 {[%clk 0:00:20.6]} 70. Rf8 {[%clk 0:00:49.5]} 70...
Rg7 {[%clk 0:00:20]} 71. Rf6+ {[%clk 0:00:48.5]} 71... Kg5 {[%clk 0:00:19.8]}
72. Ra6 {[%clk 0:00:47.4]} 72... h4 {[%clk 0:00:19.9]} 73. Ra5+ {[%clk
0:00:46.4]} 73... Kh6 {[%clk 0:00:20]} 74. Ra6+ {[%clk 0:00:45.8]} 74... Rg6
{[%clk 0:00:19.5]} 75. Ra1 {[%clk 0:00:44.7]} 75... Rf6 {[%clk 0:00:19.6]} 76.
Rh1 {[%clk 0:00:40.8]} 76... f1=Q+ {[%clk 0:00:17.7]} 77. Rxf1 {[%clk
0:00:40.6]} 77... Rxf1 {[%clk 0:00:18]} 0-1